[Event "*** Titled Tuesday Blitz"]
[Site "Chess.com"]
[Date "2021.03.09"]
[Round "8"]
[White "InitiatingASC"]
[Black "Grineva_Marianna"]
[Result "1-0"]
[WhiteElo "2420"]
[BlackElo "2279"]
[TimeControl "180+1"]
[EndTime "11:32:01 PST"]
[Termination "InitiatingASC won on time"]

1. Nf3 {[%clk 0:02:52.2]} 1... d6 {[%clk 0:03:00.1]} 2. b3 {[%clk 0:02:52.8]}
2... c6 {[%clk 0:03:00.4]} 3. Bb2 {[%clk 0:02:53.5]} 3... Nd7 {[%clk 0:02:58.9]}
4. e3 {[%clk 0:02:54]} 4... Ngf6 {[%clk 0:02:59.4]} 5. c4 {[%clk 0:02:53.4]}
5... g6 {[%clk 0:02:59.9]} 6. Be2 {[%clk 0:02:53.7]} 6... Bg7 {[%clk 0:03:00.5]}
7. O-O {[%clk 0:02:54.5]} 7... O-O {[%clk 0:03:00.9]} 8. d3 {[%clk 0:02:55.2]}
8... e5 {[%clk 0:03:00.5]} 9. Nbd2 {[%clk 0:02:55.6]} 9... Qc7 {[%clk
0:03:00.8]} 10. a3 {[%clk 0:02:55.2]} 10... Ne8 {[%clk 0:02:57.9]} 11. Rc1
{[%clk 0:02:55.3]} 11... f5 {[%clk 0:02:58.2]} 12. Qc2 {[%clk 0:02:55.7]} 12...
Nef6 {[%clk 0:02:56.3]} 13. b4 {[%clk 0:02:54.5]} 13... b6 {[%clk 0:02:44.1]}
14. Rfd1 {[%clk 0:02:49.2]} 14... Bb7 {[%clk 0:02:41.3]} 15. Nb3 {[%clk
0:02:48.1]} 15... c5 {[%clk 0:02:36.4]} 16. Ng5 {[%clk 0:02:46.3]} 16... Rae8
{[%clk 0:02:33.7]} 17. Bf3 {[%clk 0:02:38]} 17... h6 {[%clk 0:02:23.4]} 18. Bxb7
{[%clk 0:02:37.2]} 18... Qxb7 {[%clk 0:02:22.2]} 19. Nf3 {[%clk 0:02:37.7]}
19... Rf7 {[%clk 0:02:14.5]} 20. Nfd2 {[%clk 0:02:28.6]} 20... g5 {[%clk
0:02:10.4]} 21. Nf1 {[%clk 0:02:28.6]} 21... f4 {[%clk 0:02:08.4]} 22. d4 {[%clk
0:02:14.1]} 22... Ng4 {[%clk 0:01:43.4]} 23. dxc5 {[%clk 0:01:51.5]} 23... dxc5
{[%clk 0:01:41.5]} 24. exf4 {[%clk 0:01:43.3]} 24... gxf4 {[%clk 0:01:39.5]} 25.
Qg6 {[%clk 0:01:40.7]} 25... Ngf6 {[%clk 0:01:16.3]} 26. Rd6 {[%clk 0:01:35.6]}
26... cxb4 {[%clk 0:01:14.6]} 27. axb4 {[%clk 0:01:35.4]} 27... Ne4 {[%clk
0:01:09.6]} 28. Rxd7 {[%clk 0:01:31.8]} 28... Rxd7 {[%clk 0:01:06.4]} 29. Qxe8+
{[%clk 0:01:31.5]} 29... Kh7 {[%clk 0:01:05.4]} 30. c5 {[%clk 0:01:22.5]} 30...
bxc5 {[%clk 0:01:02.6]} 31. Nxc5 {[%clk 0:01:22.5]} 31... Nxc5 {[%clk
0:00:57.3]} 32. Rxc5 {[%clk 0:01:21.9]} 32... Re7 {[%clk 0:00:57.5]} 33. Qb5
{[%clk 0:01:19.1]} 33... Qe4 {[%clk 0:00:55.2]} 34. Qc4 {[%clk 0:01:17.4]} 34...
Qg6 {[%clk 0:00:52.4]} 35. Qc2 {[%clk 0:01:16.3]} 35... e4 {[%clk 0:00:50.2]}
36. Rc7 {[%clk 0:01:09.9]} 36... f3 {[%clk 0:00:44.9]} 37. g3 {[%clk 0:00:57]}
37... Qe6 {[%clk 0:00:25.2]} 38. Bxg7 {[%clk 0:00:44.4]} 38... Kxg7 {[%clk
0:00:16.1]} 39. Rxe7+ {[%clk 0:00:40.6]} 39... Qxe7 {[%clk 0:00:16.6]} 40. Ne3
{[%clk 0:00:40.1]} 40... Qxb4 {[%clk 0:00:16.2]} 41. Qc7+ {[%clk 0:00:32.7]}
41... Kg6 {[%clk 0:00:16.1]} 42. Qxa7 {[%clk 0:00:31.2]} 42... Qe1+ {[%clk
0:00:14.4]} 43. Nf1 {[%clk 0:00:31.4]} 43... h5 {[%clk 0:00:14]} 44. Qe3 {[%clk
0:00:27.4]} 44... Qe2 {[%clk 0:00:12.2]} 45. h4 {[%clk 0:00:26.6]} 45... Kf7
{[%clk 0:00:10.9]} 46. Qf4+ {[%clk 0:00:24.6]} 46... Ke6 {[%clk 0:00:11.1]} 47.
Qh6+ {[%clk 0:00:23]} 47... Kd5 {[%clk 0:00:11.2]} 48. Qxh5+ {[%clk 0:00:23.1]}
48... Kd4 {[%clk 0:00:12.1]} 49. Qg5 {[%clk 0:00:21.8]} 49... Kd3 {[%clk
0:00:07]} 50. Qe3+ {[%clk 0:00:20.1]} 50... Kc4 {[%clk 0:00:05.6]} 51. h5 {[%clk
0:00:20.3]} 51... Qd3 {[%clk 0:00:03.8]} 52. h6 {[%clk 0:00:19.8]} 1-0

[Event "*** Titled Tuesday Blitz"]
[Site "Chess.com"]
[Date "2021.03.09"]
[Round "8"]
[White "German_Bazeev"]
[Black "CSB7"]
[Result "1-0"]
[WhiteElo "2764"]
[BlackElo "2600"]
[TimeControl "180+1"]
[EndTime "11:32:02 PST"]
[Termination "German_Bazeev won by resignation"]

1. d4 {[%clk 0:02:59.9]} 1... Nf6 {[%clk 0:02:59.4]} 2. Nf3 {[%clk 0:03:00]}
2... g6 {[%clk 0:02:58.8]} 3. c4 {[%clk 0:03:00]} 3... Bg7 {[%clk 0:02:58.6]} 4.
Nc3 {[%clk 0:03:00.7]} 4... d5 {[%clk 0:02:58.6]} 5. cxd5 {[%clk 0:03:01.6]}
5... Nxd5 {[%clk 0:02:58.3]} 6. Qa4+ {[%clk 0:03:02.3]} 6... Nc6 {[%clk
0:02:54.6]} 7. e4 {[%clk 0:03:01.4]} 7... Nb6 {[%clk 0:02:38.4]} 8. Qc2 {[%clk
0:03:00.9]} 8... O-O {[%clk 0:02:13.8]} 9. d5 {[%clk 0:02:58]} 9... Nd4 {[%clk
0:02:11.2]} 10. Nxd4 {[%clk 0:02:57.7]} 10... Bxd4 {[%clk 0:02:12.1]} 11. Bh6
{[%clk 0:02:58.1]} 11... Bg7 {[%clk 0:02:11.8]} 12. Bxg7 {[%clk 0:02:57.4]}
12... Kxg7 {[%clk 0:02:12.7]} 13. Rd1 {[%clk 0:02:57.3]} 13... Qd6 {[%clk
0:02:03.6]} 14. Be2 {[%clk 0:02:43.3]} 14... a6 {[%clk 0:01:48.7]} 15. O-O
{[%clk 0:02:41.7]} 15... e5 {[%clk 0:01:44]} 16. a4 {[%clk 0:02:42.2]} 16... Bd7
{[%clk 0:01:40.9]} 17. a5 {[%clk 0:02:41.3]} 17... Nc8 {[%clk 0:01:40]} 18. Na4
{[%clk 0:02:36.4]} 18... Na7 {[%clk 0:01:06.3]} 19. Nc5 {[%clk 0:02:27.8]} 19...
Rab8 {[%clk 0:00:59.1]} 20. f4 {[%clk 0:02:00]} 20... f6 {[%clk 0:00:45.4]} 21.
Qc3 {[%clk 0:01:47]} 21... Rfe8 {[%clk 0:00:38.5]} 22. fxe5 {[%clk 0:01:44.4]}
22... fxe5 {[%clk 0:00:29.6]} 23. Rf2 {[%clk 0:01:32.8]} 23... Nb5 {[%clk
0:00:23.8]} 24. Bxb5 {[%clk 0:01:32.1]} 24... Bxb5 {[%clk 0:00:24.4]} 25. Rc1
{[%clk 0:01:20.4]} 25... c6 {[%clk 0:00:21.7]} 26. Ne6+ {[%clk 0:01:19.7]} 26...
Rxe6 {[%clk 0:00:21.6]} 27. dxe6 {[%clk 0:01:19.6]} 27... Qxe6 {[%clk
0:00:22.5]} 28. Rd1 {[%clk 0:01:17.2]} 28... Re8 {[%clk 0:00:21.2]} 29. h3
{[%clk 0:01:13.7]} 29... Qe7 {[%clk 0:00:16.8]} 30. b4 {[%clk 0:01:12.5]} 30...
Qe6 {[%clk 0:00:15.7]} 31. Qc5 {[%clk 0:01:13.1]} 31... Qe7 {[%clk 0:00:14.8]}
32. Qxe7+ {[%clk 0:01:08.1]} 32... Rxe7 {[%clk 0:00:15.7]} 33. Rfd2 {[%clk
0:01:08.5]} 33... Kf6 {[%clk 0:00:11.2]} 34. Rd6+ {[%clk 0:01:07.5]} 34... Kf7
{[%clk 0:00:10.6]} 35. Rd7 {[%clk 0:01:07.8]} 35... Ba4 {[%clk 0:00:10.8]} 36.
Rxe7+ {[%clk 0:01:07.6]} 36... Kxe7 {[%clk 0:00:11.7]} 37. Rd2 {[%clk
0:01:07.5]} 37... Bb3 {[%clk 0:00:04.4]} 38. Kf2 {[%clk 0:01:06.4]} 38... h6
{[%clk 0:00:03.3]} 39. Ke3 {[%clk 0:01:06.3]} 39... Be6 {[%clk 0:00:03.2]} 40.
Rf2 {[%clk 0:00:58]} 40... Bg8 {[%clk 0:00:03.1]} 41. Kd3 {[%clk 0:00:57.6]}
41... Be6 {[%clk 0:00:03.4]} 42. Kc3 {[%clk 0:00:58.3]} 42... Bg8 {[%clk
0:00:03.3]} 43. Rf3 {[%clk 0:00:45.9]} 43... Be6 {[%clk 0:00:03.7]} 44. Rg3
{[%clk 0:00:46.3]} 44... Kf6 {[%clk 0:00:04]} 45. Rd3 {[%clk 0:00:46.2]} 45...
Ke7 {[%clk 0:00:04.1]} 46. h4 {[%clk 0:00:44.3]} 46... Bf7 {[%clk 0:00:03.4]}
47. g4 {[%clk 0:00:42]} 47... Be8 {[%clk 0:00:03.7]} 48. g5 {[%clk 0:00:42.1]}
48... hxg5 {[%clk 0:00:03.9]} 49. hxg5 {[%clk 0:00:43]} 49... Bf7 {[%clk
0:00:04]} 50. Rf3 {[%clk 0:00:43.2]} 50... Ke8 {[%clk 0:00:02.8]} 51. Rh3 {[%clk
0:00:38.2]} 51... Bg8 {[%clk 0:00:03]} 52. Rh6 {[%clk 0:00:38.1]} 52... Kf7
{[%clk 0:00:03]} 53. Kc4 {[%clk 0:00:37.7]} 53... Kg7+ {[%clk 0:00:01.8]} 54.
Kc5 {[%clk 0:00:38.1]} 54... Bb3 {[%clk 0:00:02.5]} 55. Rh3 {[%clk 0:00:34.7]}
55... Bc2 {[%clk 0:00:02.5]} 56. Re3 {[%clk 0:00:34.1]} 1-0

[Event "*** Titled Tuesday Blitz"]
[Site "Chess.com"]
[Date "2021.03.09"]
[Round "8"]
[White "annacramling"]
[Black "HrvojeZagreb"]
[Result "0-1"]
[WhiteElo "2040"]
[BlackElo "2268"]
[TimeControl "180+1"]
[EndTime "11:32:02 PST"]
[Termination "HrvojeZagreb won by checkmate"]

1. d4 {[%clk 0:03:00.9]} 1... e6 {[%clk 0:02:59.7]} 2. c4 {[%clk 0:02:58.2]}
2... f5 {[%clk 0:02:59.8]} 3. Nc3 {[%clk 0:02:51.3]} 3... Nf6 {[%clk 0:02:59.8]}
4. e3 {[%clk 0:02:46.8]} 4... Bb4 {[%clk 0:02:59.5]} 5. Bd3 {[%clk 0:02:45.8]}
5... O-O {[%clk 0:02:57.9]} 6. Qc2 {[%clk 0:02:44.4]} 6... b6 {[%clk 0:02:57.6]}
7. Bd2 {[%clk 0:02:44.3]} 7... Bb7 {[%clk 0:02:56.9]} 8. f3 {[%clk 0:02:38.2]}
8... c5 {[%clk 0:02:54.2]} 9. Nge2 {[%clk 0:02:31.9]} 9... d5 {[%clk 0:02:45.1]}
10. cxd5 {[%clk 0:02:18.4]} 10... Nxd5 {[%clk 0:02:43]} 11. O-O {[%clk
0:02:11.8]} 11... Nc6 {[%clk 0:02:31.5]} 12. dxc5 {[%clk 0:02:05.5]} 12... Bxc5
{[%clk 0:02:30.6]} 13. Nxd5 {[%clk 0:02:02.9]} 13... Qxd5 {[%clk 0:02:28.3]} 14.
Bc4 {[%clk 0:02:02.8]} 14... Qe5 {[%clk 0:02:21.5]} 15. Qb3 {[%clk 0:02:01.3]}
15... Na5 {[%clk 0:02:13.2]} 16. Bxa5 {[%clk 0:01:59.6]} 16... Qxe3+ {[%clk
0:02:09.3]} 17. Kh1 {[%clk 0:01:46.8]} 17... Qxb3 {[%clk 0:02:08.4]} 18. axb3
{[%clk 0:01:46.3]} 18... bxa5 {[%clk 0:02:07.7]} 19. Bxe6+ {[%clk 0:01:46.1]}
19... Kh8 {[%clk 0:02:07.1]} 20. Rxa5 {[%clk 0:01:46.7]} 20... Bb6 {[%clk
0:02:04.6]} 21. Rxf5 {[%clk 0:01:45.8]} 21... Rxf5 {[%clk 0:02:00.9]} 22. Bxf5
{[%clk 0:01:46.7]} 22... Ba6 {[%clk 0:02:01.1]} 23. Re1 {[%clk 0:01:12.2]} 23...
Re8 {[%clk 0:01:59.4]} 24. Be4 {[%clk 0:01:12]} 24... Bf2 {[%clk 0:01:50.4]} 25.
Rf1 {[%clk 0:00:40]} 25... Bd4 {[%clk 0:01:25.3]} 26. Rd1 {[%clk 0:00:36.9]}
26... Bxb2 {[%clk 0:01:23.7]} 27. Rd2 {[%clk 0:00:32.8]} 27... Bf6 {[%clk
0:01:16.3]} 28. Ng3 {[%clk 0:00:27.3]} 28... Rc8 {[%clk 0:01:05.3]} 29. Rd1
{[%clk 0:00:20.1]} 29... g6 {[%clk 0:01:04.3]} 30. h3 {[%clk 0:00:18]} 30... Be5
{[%clk 0:01:01.9]} 31. Nf1 {[%clk 0:00:13.3]} 31... Rc3 {[%clk 0:00:42.1]} 32.
Bd5 {[%clk 0:00:07.1]} 32... Bf4 {[%clk 0:00:35.3]} 33. Re1 {[%clk 0:00:04.3]}
33... Bd3 {[%clk 0:00:19.2]} 34. g3 {[%clk 0:00:04.2]} 34... Bd6 {[%clk
0:00:16.4]} 35. Ne3 {[%clk 0:00:04.4]} 35... Bb4 {[%clk 0:00:08.2]} 36. Rd1
{[%clk 0:00:03.5]} 36... Be2 {[%clk 0:00:06.5]} 37. Re1 {[%clk 0:00:02.6]} 37...
Rxe3 {[%clk 0:00:06.6]} 38. Bc4 {[%clk 0:00:02.3]} 38... Bxe1 {[%clk 0:00:05.8]}
39. Bxe2 {[%clk 0:00:01.8]} 39... Rxe2 {[%clk 0:00:06.2]} 40. Kg1 {[%clk
0:00:02.4]} 40... Bxg3 {[%clk 0:00:06.3]} 41. f4 {[%clk 0:00:02.9]} 41... Rf2
{[%clk 0:00:06.2]} 42. h4 {[%clk 0:00:02.6]} 42... h5 {[%clk 0:00:06.2]} 43. b4
{[%clk 0:00:03.5]} 43... a6 {[%clk 0:00:06.2]} 44. b5 {[%clk 0:00:04.4]} 44...
axb5 {[%clk 0:00:07.1]} 45. f5 {[%clk 0:00:04.7]} 45... gxf5 {[%clk 0:00:07.6]}
46. Kh1 {[%clk 0:00:05.3]} 46... b4 {[%clk 0:00:08.4]} 47. Kg1 {[%clk
0:00:05.8]} 47... b3 {[%clk 0:00:09.2]} 48. Kh1 {[%clk 0:00:06.5]} 48... b2
{[%clk 0:00:09.9]} 49. Kg1 {[%clk 0:00:07.4]} 49... b1=Q# {[%clk 0:00:10.6]} 0-1

[Event "*** Titled Tuesday Blitz"]
[Site "Chess.com"]
[Date "2021.03.09"]
[Round "8"]
[White "AliKa2810"]
[Black "MFBerna"]
[Result "1-0"]
[WhiteElo "2552"]
[BlackElo "2388"]
[TimeControl "180+1"]
[EndTime "11:32:05 PST"]
[Termination "AliKa2810 won by resignation"]

1. c4 {[%clk 0:03:00.9]} 1... c6 {[%clk 0:02:58.5]} 2. d4 {[%clk 0:03:00.3]}
2... d5 {[%clk 0:02:59.4]} 3. Nf3 {[%clk 0:02:57.1]} 3... Nf6 {[%clk 0:02:59.5]}
4. Nc3 {[%clk 0:02:57.1]} 4... e6 {[%clk 0:02:55.2]} 5. Bg5 {[%clk 0:02:56]}
5... Nbd7 {[%clk 0:02:55]} 6. e3 {[%clk 0:02:52.2]} 6... Be7 {[%clk 0:02:54.9]}
7. Bd3 {[%clk 0:02:50.8]} 7... O-O {[%clk 0:02:53.8]} 8. O-O {[%clk 0:02:51.3]}
8... dxc4 {[%clk 0:02:50.8]} 9. Bxc4 {[%clk 0:02:52.2]} 9... b5 {[%clk
0:02:51.4]} 10. Bd3 {[%clk 0:02:52]} 10... Bb7 {[%clk 0:02:51.1]} 11. Rc1 {[%clk
0:02:52.6]} 11... a6 {[%clk 0:02:44.9]} 12. Ne4 {[%clk 0:02:27.4]} 12... Nxe4
{[%clk 0:02:36.4]} 13. Bxe7 {[%clk 0:02:27.1]} 13... Nxf2 {[%clk 0:02:16.9]} 14.
Bxh7+ {[%clk 0:02:25]} 14... Kh8 {[%clk 0:02:08.1]} 15. Rxf2 {[%clk 0:02:07.5]}
15... Qxe7 {[%clk 0:02:07.2]} 16. Be4 {[%clk 0:02:04.5]} 16... Nf6 {[%clk
0:01:53.2]} 17. Bxc6 {[%clk 0:01:33.9]} 17... Ng4 {[%clk 0:01:26.9]} 18. Re2
{[%clk 0:01:11.5]} 18... Rac8 {[%clk 0:01:19.5]} 19. Bxb7 {[%clk 0:01:02.8]}
19... Qxb7 {[%clk 0:01:20.4]} 20. h3 {[%clk 0:01:03.1]} 20... Nh6 {[%clk
0:01:09.9]} 21. Ne5 {[%clk 0:00:58.4]} 21... Qe4 {[%clk 0:00:53.2]} 22. Rxc8
{[%clk 0:00:49.8]} 22... Rxc8 {[%clk 0:00:52.3]} 23. Qd3 {[%clk 0:00:46.9]}
23... Qxd3 {[%clk 0:00:38.8]} 24. Nxd3 {[%clk 0:00:47.8]} 24... Nf5 {[%clk
0:00:34.1]} 25. Nc5 {[%clk 0:00:35]} 25... a5 {[%clk 0:00:23.8]} 26. g4 {[%clk
0:00:27.9]} 26... Nd6 {[%clk 0:00:18.6]} 27. Kg2 {[%clk 0:00:26.7]} 27... Kg8
{[%clk 0:00:17.6]} 28. Kf3 {[%clk 0:00:26.5]} 28... Kf8 {[%clk 0:00:17.6]} 29.
h4 {[%clk 0:00:23.2]} 29... Ke7 {[%clk 0:00:17.6]} 30. h5 {[%clk 0:00:23.3]}
30... Rh8 {[%clk 0:00:13.1]} 31. Rc2 {[%clk 0:00:20.2]} 31... Rh6 {[%clk
0:00:07.9]} 32. Nb7 {[%clk 0:00:17.6]} 32... Rf6+ {[%clk 0:00:06.3]} 33. Kg2
{[%clk 0:00:15.2]} 33... Nc4 {[%clk 0:00:05.7]} 34. Re2 {[%clk 0:00:13]} 34...
Rh6 {[%clk 0:00:04.8]} 35. b3 {[%clk 0:00:13.2]} 35... Nb6 {[%clk 0:00:03.5]}
36. Nxa5 {[%clk 0:00:13.5]} 36... Nd5 {[%clk 0:00:03.4]} 37. Nc6+ {[%clk
0:00:13.3]} 37... Kd6 {[%clk 0:00:03.6]} 38. Ne5 {[%clk 0:00:13.8]} 38... Ke7
{[%clk 0:00:03.5]} 39. Kg3 {[%clk 0:00:13.6]} 39... Nc3 {[%clk 0:00:03]} 40. Rc2
{[%clk 0:00:12.7]} 40... Ne4+ {[%clk 0:00:02.7]} 41. Kf4 {[%clk 0:00:12.9]}
41... f5 {[%clk 0:00:02]} 42. gxf5 {[%clk 0:00:12.4]} 42... exf5 {[%clk
0:00:02.9]} 43. Rc7+ {[%clk 0:00:12.4]} 43... Ke6 {[%clk 0:00:02.5]} 44. Rc6+
{[%clk 0:00:12.2]} 44... Nd6 {[%clk 0:00:02.1]} 45. Rxd6+ {[%clk 0:00:12.4]}
45... Kxd6 {[%clk 0:00:02.5]} 46. Nf7+ {[%clk 0:00:13]} 46... Ke6 {[%clk
0:00:02.3]} 47. Nxh6 {[%clk 0:00:13.7]} 47... gxh6 {[%clk 0:00:03.2]} 48. d5+
{[%clk 0:00:13.6]} 48... Kxd5 {[%clk 0:00:02.2]} 49. Kxf5 {[%clk 0:00:14]} 1-0

[Event "*** Titled Tuesday Blitz"]
[Site "Chess.com"]
[Date "2021.03.09"]
[Round "8"]
[White "MerryPoppies"]
[Black "MasterMK73"]
[Result "1-0"]
[WhiteElo "2194"]
[BlackElo "2287"]
[TimeControl "180+1"]
[EndTime "11:32:06 PST"]
[Termination "MerryPoppies won on time"]

1. d4 {[%clk 0:03:00.9]} 1... d5 {[%clk 0:02:59.2]} 2. c4 {[%clk 0:03:01.8]}
2... e6 {[%clk 0:02:58.1]} 3. Nc3 {[%clk 0:03:02.3]} 3... c6 {[%clk 0:02:57.4]}
4. cxd5 {[%clk 0:03:02]} 4... exd5 {[%clk 0:02:56.6]} 5. Nf3 {[%clk 0:03:02.6]}
5... Nf6 {[%clk 0:02:56.3]} 6. Bf4 {[%clk 0:03:02.9]} 6... Bd6 {[%clk
0:02:54.9]} 7. e3 {[%clk 0:02:58.5]} 7... Bxf4 {[%clk 0:02:53.3]} 8. exf4 {[%clk
0:02:58.7]} 8... O-O {[%clk 0:02:53.2]} 9. Ne5 {[%clk 0:02:58.2]} 9... Bf5
{[%clk 0:02:48.7]} 10. Bd3 {[%clk 0:02:57.9]} 10... Bxd3 {[%clk 0:02:47.4]} 11.
Qxd3 {[%clk 0:02:58]} 11... Nbd7 {[%clk 0:02:26.4]} 12. O-O {[%clk 0:02:56.7]}
12... Ne8 {[%clk 0:02:12.8]} 13. Qh3 {[%clk 0:02:38.9]} 13... Nxe5 {[%clk
0:01:52.6]} 14. fxe5 {[%clk 0:02:38.3]} 14... f6 {[%clk 0:01:44.4]} 15. Rfe1
{[%clk 0:02:22.7]} 15... fxe5 {[%clk 0:01:39.2]} 16. Rxe5 {[%clk 0:02:21.5]}
16... Nd6 {[%clk 0:01:28.7]} 17. Rae1 {[%clk 0:02:18.2]} 17... Nc4 {[%clk
0:01:25.7]} 18. Re7 {[%clk 0:02:14.3]} 18... Qd6 {[%clk 0:01:16]} 19. Qg4 {[%clk
0:01:54.9]} 19... Qf6 {[%clk 0:01:07.3]} 20. Qe6+ {[%clk 0:01:41.7]} 20... Qxe6
{[%clk 0:00:59.9]} 21. R1xe6 {[%clk 0:01:41.1]} 21... Rf7 {[%clk 0:00:46.4]} 22.
b3 {[%clk 0:01:38.1]} 22... Nb6 {[%clk 0:00:38.2]} 23. f3 {[%clk 0:01:33.7]}
23... Kf8 {[%clk 0:00:33]} 24. Rxf7+ {[%clk 0:01:24.1]} 24... Kxf7 {[%clk
0:00:32.9]} 25. Re2 {[%clk 0:01:21.4]} 25... Re8 {[%clk 0:00:32.7]} 26. Kf2
{[%clk 0:01:21.2]} 26... Rxe2+ {[%clk 0:00:31.5]} 27. Kxe2 {[%clk 0:01:22.1]}
27... Ke6 {[%clk 0:00:30.8]} 28. Ke3 {[%clk 0:01:22.7]} 28... g5 {[%clk
0:00:29.5]} 29. g3 {[%clk 0:01:22.2]} 29... h5 {[%clk 0:00:28.5]} 30. h3 {[%clk
0:01:20]} 30... Nd7 {[%clk 0:00:25.5]} 31. f4 {[%clk 0:01:20.3]} 31... g4 {[%clk
0:00:21.2]} 32. hxg4 {[%clk 0:01:19.5]} 32... hxg4 {[%clk 0:00:21.8]} 33. Nd1
{[%clk 0:01:19]} 33... Kf5 {[%clk 0:00:21.8]} 34. Nf2 {[%clk 0:01:18.8]} 34...
Nf6 {[%clk 0:00:20.6]} 35. b4 {[%clk 0:01:15.7]} 35... b6 {[%clk 0:00:20.2]} 36.
Nd3 {[%clk 0:01:09.9]} 36... Nh5 {[%clk 0:00:18]} 37. Ne5 {[%clk 0:01:08.1]}
37... Nxg3 {[%clk 0:00:16.4]} 38. Nxc6 {[%clk 0:01:07.6]} 38... a6 {[%clk
0:00:15.3]} 39. Ne7+ {[%clk 0:01:06.7]} 39... Ke6 {[%clk 0:00:15.5]} 40. Nc8
{[%clk 0:01:06.2]} 40... a5 {[%clk 0:00:12.7]} 41. bxa5 {[%clk 0:01:01.4]} 41...
bxa5 {[%clk 0:00:13.6]} 42. Nb6 {[%clk 0:00:59.5]} 42... Ne4 {[%clk 0:00:12.2]}
43. Na4 {[%clk 0:00:56.1]} 43... g3 {[%clk 0:00:09.9]} 44. Kf3 {[%clk
0:00:54.5]} 44... Nd2+ {[%clk 0:00:06.2]} 45. Kxg3 {[%clk 0:00:53.7]} 45... Nc4
{[%clk 0:00:05.7]} 46. Kg4 {[%clk 0:00:51.4]} 46... Ne3+ {[%clk 0:00:05.7]} 47.
Kf3 {[%clk 0:00:51.2]} 47... Nc4 {[%clk 0:00:06.1]} 48. Nc5+ {[%clk 0:00:51.2]}
48... Kf5 {[%clk 0:00:06.3]} 49. Nd3 {[%clk 0:00:49.5]} 49... a4 {[%clk
0:00:06.1]} 50. Ne5 {[%clk 0:00:48.9]} 50... a3 {[%clk 0:00:02.8]} 51. Nc6
{[%clk 0:00:35.4]} 51... Nd2+ {[%clk 0:00:01.6]} 52. Ke3 {[%clk 0:00:35.5]}
52... Nb1 {[%clk 0:00:01.9]} 53. Nb4 {[%clk 0:00:33.8]} 1-0

[Event "*** Titled Tuesday Blitz"]
[Site "Chess.com"]
[Date "2021.03.09"]
[Round "8"]
[White "floplover"]
[Black "Olga_Girya"]
[Result "0-1"]
[WhiteElo "2303"]
[BlackElo "2457"]
[TimeControl "180+1"]
[EndTime "11:32:07 PST"]
[Termination "Olga_Girya won by resignation"]

1. d4 {[%clk 0:03:00.4]} 1... d5 {[%clk 0:02:59.3]} 2. Nf3 {[%clk 0:02:59.5]}
2... Nf6 {[%clk 0:02:59]} 3. c4 {[%clk 0:02:59.7]} 3... c6 {[%clk 0:02:59.2]} 4.
Nc3 {[%clk 0:02:58.8]} 4... dxc4 {[%clk 0:02:58.9]} 5. a4 {[%clk 0:02:57.4]}
5... Bf5 {[%clk 0:02:54.5]} 6. Ne5 {[%clk 0:02:57.6]} 6... Nbd7 {[%clk
0:02:49.3]} 7. Nxc4 {[%clk 0:02:57.2]} 7... Nb6 {[%clk 0:02:49.5]} 8. Ne5 {[%clk
0:02:57.8]} 8... a5 {[%clk 0:02:49.6]} 9. e3 {[%clk 0:02:55.8]} 9... e6 {[%clk
0:02:48.7]} 10. Bd3 {[%clk 0:02:55.3]} 10... Bxd3 {[%clk 0:02:46.5]} 11. Nxd3
{[%clk 0:02:55.3]} 11... Be7 {[%clk 0:02:42.5]} 12. O-O {[%clk 0:02:55.3]} 12...
O-O {[%clk 0:02:42.6]} 13. Bd2 {[%clk 0:02:45.2]} 13... Nc4 {[%clk 0:02:36.6]}
14. Qc2 {[%clk 0:02:39.1]} 14... Nxd2 {[%clk 0:02:33.8]} 15. Qxd2 {[%clk
0:02:40]} 15... Nd5 {[%clk 0:02:27.5]} 16. Qe2 {[%clk 0:02:21.2]} 16... Nb4
{[%clk 0:02:24.9]} 17. Ne5 {[%clk 0:02:20.5]} 17... f6 {[%clk 0:02:13.6]} 18.
Nf3 {[%clk 0:02:05.4]} 18... Qd7 {[%clk 0:01:46.2]} 19. Qc4 {[%clk 0:02:02.6]}
19... Kh8 {[%clk 0:01:41]} 20. e4 {[%clk 0:01:59.4]} 20... Rad8 {[%clk
0:01:27.4]} 21. Rad1 {[%clk 0:01:59.2]} 21... Qc8 {[%clk 0:01:27.1]} 22. Rfe1
{[%clk 0:01:57]} 22... Rfe8 {[%clk 0:01:16.5]} 23. Qb3 {[%clk 0:01:47.8]} 23...
Bf8 {[%clk 0:01:15.2]} 24. Re3 {[%clk 0:01:44.1]} 24... c5 {[%clk 0:01:11.8]}
25. Nb5 {[%clk 0:01:25.6]} 25... cxd4 {[%clk 0:00:42.9]} 26. Nfxd4 {[%clk
0:01:26.5]} 26... e5 {[%clk 0:00:42.1]} 27. Nf5 {[%clk 0:01:16.9]} 27... Rxd1+
{[%clk 0:00:35.2]} 28. Qxd1 {[%clk 0:01:17.8]} 28... Rd8 {[%clk 0:00:35.4]} 29.
Qf1 {[%clk 0:01:07.2]} 29... Qc2 {[%clk 0:00:34.5]} 30. Re1 {[%clk 0:00:50.3]}
30... Bc5 {[%clk 0:00:28.1]} 31. Nc3 {[%clk 0:00:43.3]} 31... Rd2 {[%clk
0:00:18.9]} 32. Nd1 {[%clk 0:00:37.6]} 32... Nd3 {[%clk 0:00:17.9]} 33. Nfe3
{[%clk 0:00:33.6]} 33... Qxa4 {[%clk 0:00:14.6]} 34. Re2 {[%clk 0:00:31.7]}
34... Bxe3 {[%clk 0:00:13.3]} 35. Nxe3 {[%clk 0:00:27.5]} 35... Rxe2 {[%clk
0:00:13.2]} 36. Qxe2 {[%clk 0:00:27.8]} 36... Qa1+ {[%clk 0:00:08.8]} 37. Nf1
{[%clk 0:00:27.6]} 37... Qb1 {[%clk 0:00:08.3]} 38. Qe3 {[%clk 0:00:20.5]} 38...
h6 {[%clk 0:00:08.5]} 39. Qb6 {[%clk 0:00:19.5]} 39... Qxb2 {[%clk 0:00:07.9]}
40. Qd8+ {[%clk 0:00:19.5]} 40... Kh7 {[%clk 0:00:08.3]} 41. Qxd3 {[%clk
0:00:20.4]} 41... a4 {[%clk 0:00:07.4]} 42. h4 {[%clk 0:00:19.5]} 42... a3
{[%clk 0:00:07.4]} 43. h5 {[%clk 0:00:19.9]} 43... a2 {[%clk 0:00:06.9]} 44. Qg3
{[%clk 0:00:20.1]} 44... Qb5 {[%clk 0:00:03.7]} 45. Qa3 {[%clk 0:00:17.6]} 45...
Qb1 {[%clk 0:00:03.3]} 46. Qg3 {[%clk 0:00:15.6]} 46... Qxe4 {[%clk 0:00:03.4]}
47. Qa3 {[%clk 0:00:13.4]} 47... Qb1 {[%clk 0:00:03.6]} 0-1